{"text_format":"1","workbook":"xlsx","n_sheets":15,"sheets":["Sheet1","يناير","فبراير","مارس","ابريل","مايو","يونيو","يوليو","اغسطس","سبتمبر","اكتوبر","نوفمبر","ديسمبر","الاسماء","مسير"],"not_rendered":{"charts":0,"images":0,"macros":1,"external_links":0,"defined_names":1,"comments":0,"pivot_tables":0},"unopened":[],"bounds":{"document_bytes":16777216,"sheet_cells":100000,"rows_first":2000,"rows_last":500,"rows_between":2000,"halvings":0,"cell_chars":16384,"cell_head_chars":4096},"cells_cut":0,"cells_raw":0,"read":"whole","date_system":"1900"}

{"sheet":"Sheet1","index":0,"n_rows":0,"n_cols":0,"rows_kept":0,"cut":false,"hidden":false,"merged":[]}

{"sheet":"يناير","index":1,"n_rows":33,"n_cols":9,"rows_kept":33,"cut":false,"hidden":false,"merged":[[0,0,0,1],[0,2,0,3],[0,7,0,8]]}
["مؤسسة اعمال الروائع للمقاولات",null,"رواتب الموظفين",null,null,"الاجمالى",{"$f":"G22","v":17170},"الاداره الماليه"]
["الرقم","الاسم","المهنه","الراتب الاساسى","الاضافات","الحسميات","صافى الراتب","التوقيع","الملاحظات"]
[1,"رشاد احمد عطيه","الحسابات",3600,10,5,{"$f":"D3+E3-F3","v":3605}]
[2,"احمد ابراهيم","مهندس",5000,10,5,{"$f":"D4+E4-F4","v":5005}]
[3,"محمد رمضان","مشرف",3000,10,5,3005]
[4,"حماده محمد حسين","مندوب تسويق",1500,300,5,1795]
[5,"نويد احمد مختار","مشرف",2250,10,5,2255]
[6,"احمد رشاد احمد","مندوب",1500,10,5,1505]
[null,null,null,null,null,null,0]
[null,null,null,null,null,null,0]
[null,null,null,null,null,null,0]
[null,null,null,null,null,null,0]
[null,null,null,null,null,null,0]
[null,null,null,null,null,null,0]
[null,null,null,null,null,null,0]
[null,null,null,null,null,null,0]
[null,null,null,null,null,null,0]
[null,null,null,null,null,null,0]
[null,null,null,null,null,null,0]
[null,null,null,null,null,null,0]
[null,null,null,null,null,null,0]
[null,null,{"$f":"SUM(C3:C21)","v":0},{"$f":"SUM(D3:D21)","v":16850},{"$f":"SUM(E3:E21)","v":350},30,{"$f":"D22+E22-F22","v":17170}]
[]
[]
[]
[]
[]
[]
[]
[]
[]
[]
[null,1,"رشاد احمد عطيه","الحسابات",3600,10,5]

{"sheet":"فبراير","index":2,"n_rows":22,"n_cols":9,"rows_kept":22,"cut":false,"hidden":false,"merged":[[0,0,0,1],[0,2,0,3],[0,7,0,8]]}
["مؤسسة اعمال الروائع للمقاولات",null,"رواتب الموظفين",null,null,"الاجمالى",{"$f":"G22","v":16880},"الاداره الماليه"]
["الرقم","الاسم","المهنه","الراتب الاساسى","الاضافات","الحسميات","صافى الراتب","التوقيع","الملاحظات"]
[1,"رشاد احمد عطيه","الحسابات",3600,10,5,{"$f":"D3+E3-F3","v":3605}]
[2,"احمد ابراهيم","مهندس",5000,10,5,{"$f":"D4+E4-F4","v":5005}]
[3,"محمد رمضان","مشرف",3000,10,5,3005]
[4,"حماده محمد","مندوب",1500,10,5,1505]
[5,"نويد احمد","مشرف",2250,10,5,2255]
[6,"احمد رشاد احمد","مندوب",1500,10,5,1505]
[null,null,null,null,null,null,0]
[null,null,null,null,null,null,0]
[null,null,null,null,null,null,0]
[null,null,null,null,null,null,0]
[null,null,null,null,null,null,0]
[null,null,null,null,null,null,0]
[null,null,null,null,null,null,0]
[null,null,null,null,null,null,0]
[null,null,null,null,null,null,0]
[null,null,null,null,null,null,0]
[null,null,null,null,null,null,0]
[null,null,null,null,null,null,0]
[null,null,null,null,null,null,0]
[null,null,{"$f":"SUM(C3:C21)","v":0},{"$f":"SUM(D3:D21)","v":16850},{"$f":"SUM(E3:E21)","v":60},30,{"$f":"D22+E22-F22","v":16880}]

{"sheet":"مارس","index":3,"n_rows":22,"n_cols":9,"rows_kept":22,"cut":false,"hidden":false,"merged":[[0,0,0,1],[0,2,0,3],[0,7,0,8]]}
["مؤسسة اعمال الروائع للمقاولات",null,"رواتب الموظفين",null,null,"الاجمالى",{"$f":"G22","v":16880},"الاداره الماليه"]
["الرقم","الاسم","المهنه","الراتب الاساسى","الاضافات","الحسميات","صافى الراتب","التوقيع","الملاحظات"]
[1,"رشاد احمد عطيه","الحسابات",3600,10,5,{"$f":"D3+E3-F3","v":3605}]
[2,"احمد ابراهيم","مهندس",5000,10,5,{"$f":"D4+E4-F4","v":5005}]
[3,"محمد رمضان","مشرف",3000,10,5,3005]
[4,"حماده محمد","مندوب",1500,10,5,1505]
[5,"نويد احمد","مشرف",2250,10,5,2255]
[6,"احمد رشاد احمد","مندوب",1500,10,5,1505]
[null,null,null,null,null,null,0]
[null,null,null,null,null,null,0]
[null,null,null,null,null,null,0]
[null,null,null,null,null,null,0]
[null,null,null,null,null,null,0]
[null,null,null,null,null,null,0]
[null,null,null,null,null,null,0]
[null,null,null,null,null,null,0]
[null,null,null,null,null,null,0]
[null,null,null,null,null,null,0]
[null,null,null,null,null,null,0]
[null,null,null,null,null,null,0]
[null,null,null,null,null,null,0]
[null,null,{"$f":"SUM(C3:C21)","v":0},{"$f":"SUM(D3:D21)","v":16850},{"$f":"SUM(E3:E21)","v":60},30,{"$f":"D22+E22-F22","v":16880}]

{"sheet":"ابريل","index":4,"n_rows":22,"n_cols":9,"rows_kept":22,"cut":false,"hidden":false,"merged":[[0,0,0,1],[0,2,0,3],[0,7,0,8]]}
["مؤسسة اعمال الروائع للمقاولات",null,"رواتب الموظفين",null,null,"الاجمالى",{"$f":"G22","v":16880},"الاداره الماليه"]
["الرقم","الاسم","المهنه","الراتب الاساسى","الاضافات","الحسميات","صافى الراتب","التوقيع","الملاحظات"]
[1,"رشاد احمد عطيه","الحسابات",3600,10,5,{"$f":"D3+E3-F3","v":3605}]
[2,"احمد ابراهيم","مهندس",5000,10,5,{"$f":"D4+E4-F4","v":5005}]
[3,"محمد رمضان","مشرف",3000,10,5,3005]
[4,"حماده محمد","مندوب",1500,10,5,1505]
[5,"نويد احمد","مشرف",2250,10,5,2255]
[6,"احمد رشاد احمد","مندوب",1500,10,5,1505]
[null,null,null,null,null,null,0]
[null,null,null,null,null,null,0]
[null,null,null,null,null,null,0]
[null,null,null,null,null,null,0]
[null,null,null,null,null,null,0]
[null,null,null,null,null,null,0]
[null,null,null,null,null,null,0]
[null,null,null,null,null,null,0]
[null,null,null,null,null,null,0]
[null,null,null,null,null,null,0]
[null,null,null,null,null,null,0]
[null,null,null,null,null,null,0]
[null,null,null,null,null,null,0]
[null,null,{"$f":"SUM(C3:C21)","v":0},{"$f":"SUM(D3:D21)","v":16850},{"$f":"SUM(E3:E21)","v":60},30,{"$f":"D22+E22-F22","v":16880}]

{"sheet":"مايو","index":5,"n_rows":22,"n_cols":9,"rows_kept":22,"cut":false,"hidden":false,"merged":[[0,0,0,1],[0,2,0,3],[0,7,0,8]]}
["مؤسسة اعمال الروائع للمقاولات",null,"رواتب الموظفين",null,null,"الاجمالى",{"$f":"G22","v":16880},"الاداره الماليه"]
["الرقم","الاسم","المهنه","الراتب الاساسى","الاضافات","الحسميات","صافى الراتب","التوقيع","الملاحظات"]
[1,"رشاد احمد عطيه","الحسابات",3600,10,5,{"$f":"D3+E3-F3","v":3605}]
[2,"احمد ابراهيم","مهندس",5000,10,5,{"$f":"D4+E4-F4","v":5005}]
[3,"محمد رمضان","مشرف",3000,10,5,3005]
[4,"حماده محمد","مندوب",1500,10,5,1505]
[5,"نويد احمد","مشرف",2250,10,5,2255]
[6,"احمد رشاد احمد","مندوب",1500,10,5,1505]
[null,null,null,null,null,null,0]
[null,null,null,null,null,null,0]
[null,null,null,null,null,null,0]
[null,null,null,null,null,null,0]
[null,null,null,null,null,null,0]
[null,null,null,null,null,null,0]
[null,null,null,null,null,null,0]
[null,null,null,null,null,null,0]
[null,null,null,null,null,null,0]
[null,null,null,null,null,null,0]
[null,null,null,null,null,null,0]
[null,null,null,null,null,null,0]
[null,null,null,null,null,null,0]
[null,null,{"$f":"SUM(C3:C21)","v":0},{"$f":"SUM(D3:D21)","v":16850},{"$f":"SUM(E3:E21)","v":60},30,{"$f":"D22+E22-F22","v":16880}]

{"sheet":"يونيو","index":6,"n_rows":22,"n_cols":9,"rows_kept":22,"cut":false,"hidden":false,"merged":[[0,0,0,1],[0,2,0,3],[0,7,0,8]]}
["مؤسسة اعمال الروائع للمقاولات",null,"رواتب الموظفين",null,null,"الاجمالى",{"$f":"G22","v":16880},"الاداره الماليه"]
["الرقم","الاسم","المهنه","الراتب الاساسى","الاضافات","الحسميات","صافى الراتب","التوقيع","الملاحظات"]
[1,"رشاد احمد عطيه","الحسابات",3600,10,5,{"$f":"D3+E3-F3","v":3605}]
[2,"احمد ابراهيم","مهندس",5000,10,5,{"$f":"D4+E4-F4","v":5005}]
[3,"محمد رمضان","مشرف",3000,10,5,3005]
[4,"حماده محمد","مندوب",1500,10,5,1505]
[5,"نويد احمد","مشرف",2250,10,5,2255]
[6,"احمد رشاد احمد","مندوب",1500,10,5,1505]
[null,null,null,null,null,null,0]
[null,null,null,null,null,null,0]
[null,null,null,null,null,null,0]
[null,null,null,null,null,null,0]
[null,null,null,null,null,null,0]
[null,null,null,null,null,null,0]
[null,null,null,null,null,null,0]
[null,null,null,null,null,null,0]
[null,null,null,null,null,null,0]
[null,null,null,null,null,null,0]
[null,null,null,null,null,null,0]
[null,null,null,null,null,null,0]
[null,null,null,null,null,null,0]
[null,null,{"$f":"SUM(C3:C21)","v":0},{"$f":"SUM(D3:D21)","v":16850},{"$f":"SUM(E3:E21)","v":60},30,{"$f":"D22+E22-F22","v":16880}]

{"sheet":"يوليو","index":7,"n_rows":22,"n_cols":9,"rows_kept":22,"cut":false,"hidden":false,"merged":[[0,0,0,1],[0,2,0,3],[0,7,0,8]]}
["مؤسسة اعمال الروائع للمقاولات",null,"رواتب الموظفين",null,null,"الاجمالى",{"$f":"G22","v":16880},"الاداره الماليه"]
["الرقم","الاسم","المهنه","الراتب الاساسى","الاضافات","الحسميات","صافى الراتب","التوقيع","الملاحظات"]
[1,"رشاد احمد عطيه","الحسابات",3600,10,5,{"$f":"D3+E3-F3","v":3605}]
[2,"احمد ابراهيم","مهندس",5000,10,5,{"$f":"D4+E4-F4","v":5005}]
[3,"محمد رمضان","مشرف",3000,10,5,3005]
[4,"حماده محمد","مندوب",1500,10,5,1505]
[5,"نويد احمد","مشرف",2250,10,5,2255]
[6,"احمد رشاد احمد","مندوب",1500,10,5,1505]
[null,null,null,null,null,null,0]
[null,null,null,null,null,null,0]
[null,null,null,null,null,null,0]
[null,null,null,null,null,null,0]
[null,null,null,null,null,null,0]
[null,null,null,null,null,null,0]
[null,null,null,null,null,null,0]
[null,null,null,null,null,null,0]
[null,null,null,null,null,null,0]
[null,null,null,null,null,null,0]
[null,null,null,null,null,null,0]
[null,null,null,null,null,null,0]
[null,null,null,null,null,null,0]
[null,null,{"$f":"SUM(C3:C21)","v":0},{"$f":"SUM(D3:D21)","v":16850},{"$f":"SUM(E3:E21)","v":60},30,{"$f":"D22+E22-F22","v":16880}]

{"sheet":"اغسطس","index":8,"n_rows":22,"n_cols":9,"rows_kept":22,"cut":false,"hidden":false,"merged":[[0,0,0,1],[0,2,0,3],[0,7,0,8]]}
["مؤسسة اعمال الروائع للمقاولات",null,"رواتب الموظفين",null,null,"الاجمالى",{"$f":"G22","v":16880},"الاداره الماليه"]
["الرقم","الاسم","المهنه","الراتب الاساسى","الاضافات","الحسميات","صافى الراتب","التوقيع","الملاحظات"]
[1,"رشاد احمد عطيه","الحسابات",3600,10,5,{"$f":"D3+E3-F3","v":3605}]
[2,"احمد ابراهيم","مهندس",5000,10,5,{"$f":"D4+E4-F4","v":5005}]
[3,"محمد رمضان","مشرف",3000,10,5,3005]
[4,"حماده محمد","مندوب",1500,10,5,1505]
[5,"نويد احمد","مشرف",2250,10,5,2255]
[6,"احمد رشاد احمد","مندوب",1500,10,5,1505]
[null,null,null,null,null,null,0]
[null,null,null,null,null,null,0]
[null,null,null,null,null,null,0]
[null,null,null,null,null,null,0]
[null,null,null,null,null,null,0]
[null,null,null,null,null,null,0]
[null,null,null,null,null,null,0]
[null,null,null,null,null,null,0]
[null,null,null,null,null,null,0]
[null,null,null,null,null,null,0]
[null,null,null,null,null,null,0]
[null,null,null,null,null,null,0]
[null,null,null,null,null,null,0]
[null,null,{"$f":"SUM(C3:C21)","v":0},{"$f":"SUM(D3:D21)","v":16850},{"$f":"SUM(E3:E21)","v":60},30,{"$f":"D22+E22-F22","v":16880}]

{"sheet":"سبتمبر","index":9,"n_rows":22,"n_cols":9,"rows_kept":22,"cut":false,"hidden":false,"merged":[[0,0,0,1],[0,2,0,3],[0,7,0,8]]}
["مؤسسة اعمال الروائع للمقاولات",null,"رواتب الموظفين",null,null,"الاجمالى",{"$f":"G22","v":16880},"الاداره الماليه"]
["الرقم","الاسم","المهنه","الراتب الاساسى","الاضافات","الحسميات","صافى الراتب","التوقيع","الملاحظات"]
[1,"رشاد احمد عطيه","الحسابات",3600,10,5,{"$f":"D3+E3-F3","v":3605}]
[2,"احمد ابراهيم","مهندس",5000,10,5,{"$f":"D4+E4-F4","v":5005}]
[3,"محمد رمضان","مشرف",3000,10,5,3005]
[4,"حماده محمد","مندوب",1500,10,5,1505]
[5,"نويد احمد","مشرف",2250,10,5,2255]
[6,"احمد رشاد احمد","مندوب",1500,10,5,1505]
[null,null,null,null,null,null,0]
[null,null,null,null,null,null,0]
[null,null,null,null,null,null,0]
[null,null,null,null,null,null,0]
[null,null,null,null,null,null,0]
[null,null,null,null,null,null,0]
[null,null,null,null,null,null,0]
[null,null,null,null,null,null,0]
[null,null,null,null,null,null,0]
[null,null,null,null,null,null,0]
[null,null,null,null,null,null,0]
[null,null,null,null,null,null,0]
[null,null,null,null,null,null,0]
[null,null,{"$f":"SUM(C3:C21)","v":0},{"$f":"SUM(D3:D21)","v":16850},{"$f":"SUM(E3:E21)","v":60},30,{"$f":"D22+E22-F22","v":16880}]

{"sheet":"اكتوبر","index":10,"n_rows":22,"n_cols":9,"rows_kept":22,"cut":false,"hidden":false,"merged":[[0,0,0,1],[0,2,0,3],[0,7,0,8]]}
["مؤسسة اعمال الروائع للمقاولات",null,"رواتب الموظفين",null,null,"الاجمالى",{"$f":"G22","v":16880},"الاداره الماليه"]
["الرقم","الاسم","المهنه","الراتب الاساسى","الاضافات","الحسميات","صافى الراتب","التوقيع","الملاحظات"]
[1,"رشاد احمد عطيه","الحسابات",3600,10,5,{"$f":"D3+E3-F3","v":3605}]
[2,"احمد ابراهيم","مهندس",5000,10,5,{"$f":"D4+E4-F4","v":5005}]
[3,"محمد رمضان","مشرف",3000,10,5,3005]
[4,"حماده محمد","مندوب",1500,10,5,1505]
[5,"نويد احمد","مشرف",2250,10,5,2255]
[6,"احمد رشاد احمد","مندوب",1500,10,5,1505]
[null,null,null,null,null,null,0]
[null,null,null,null,null,null,0]
[null,null,null,null,null,null,0]
[null,null,null,null,null,null,0]
[null,null,null,null,null,null,0]
[null,null,null,null,null,null,0]
[null,null,null,null,null,null,0]
[null,null,null,null,null,null,0]
[null,null,null,null,null,null,0]
[null,null,null,null,null,null,0]
[null,null,null,null,null,null,0]
[null,null,null,null,null,null,0]
[null,null,null,null,null,null,0]
[null,null,{"$f":"SUM(C3:C21)","v":0},{"$f":"SUM(D3:D21)","v":16850},{"$f":"SUM(E3:E21)","v":60},30,{"$f":"D22+E22-F22","v":16880}]

{"sheet":"نوفمبر","index":11,"n_rows":22,"n_cols":9,"rows_kept":22,"cut":false,"hidden":false,"merged":[[0,0,0,1],[0,2,0,3],[0,7,0,8]]}
["مؤسسة اعمال الروائع للمقاولات",null,"رواتب الموظفين",null,null,"الاجمالى",{"$f":"G22","v":16880},"الاداره الماليه"]
["الرقم","الاسم","المهنه","الراتب الاساسى","الاضافات","الحسميات","صافى الراتب","التوقيع","الملاحظات"]
[1,"رشاد احمد عطيه","الحسابات",3600,10,5,{"$f":"D3+E3-F3","v":3605}]
[2,"احمد ابراهيم","مهندس",5000,10,5,{"$f":"D4+E4-F4","v":5005}]
[3,"محمد رمضان","مشرف",3000,10,5,3005]
[4,"حماده محمد","مندوب",1500,10,5,1505]
[5,"نويد احمد","مشرف",2250,10,5,2255]
[6,"احمد رشاد احمد","مندوب",1500,10,5,1505]
[null,null,null,null,null,null,0]
[null,null,null,null,null,null,0]
[null,null,null,null,null,null,0]
[null,null,null,null,null,null,0]
[null,null,null,null,null,null,0]
[null,null,null,null,null,null,0]
[null,null,null,null,null,null,0]
[null,null,null,null,null,null,0]
[null,null,null,null,null,null,0]
[null,null,null,null,null,null,0]
[null,null,null,null,null,null,0]
[null,null,null,null,null,null,0]
[null,null,null,null,null,null,0]
[null,null,{"$f":"SUM(C3:C21)","v":0},{"$f":"SUM(D3:D21)","v":16850},{"$f":"SUM(E3:E21)","v":60},30,{"$f":"D22+E22-F22","v":16880}]

{"sheet":"ديسمبر","index":12,"n_rows":22,"n_cols":9,"rows_kept":22,"cut":false,"hidden":false,"merged":[[0,0,0,1],[0,2,0,3],[0,7,0,8]]}
["مؤسسة اعمال الروائع للمقاولات",null,"رواتب الموظفين",null,null,"الاجمالى",{"$f":"G22","v":16385},"الاداره الماليه"]
["الرقم","الاسم","المهنه","الراتب الاساسى","الاضافات","الحسميات","صافى الراتب","التوقيع","الملاحظات"]
[1,"رشاد احمد عطيه","الحسابات",3600,10,5,{"$f":"D3+E3-F3","v":3605}]
[2,"احمد ابراهيم","مهندس",5000,10,5,{"$f":"D4+E4-F4","v":5005}]
[3,"محمد رمضان","مشرف",3000,10,5,3005]
[4,"حماده محمد","مندوب",1500,10,5,1505]
[5,"نويد احمد مختار","مشرف",2250,10,500,1760]
[6,"احمد رشاد احمد","مندوب",1500,10,5,1505]
[null,null,null,null,null,null,0]
[null,null,null,null,null,null,0]
[null,null,null,null,null,null,0]
[null,null,null,null,null,null,0]
[null,null,null,null,null,null,0]
[null,null,null,null,null,null,0]
[null,null,null,null,null,null,0]
[null,null,null,null,null,null,0]
[null,null,null,null,null,null,0]
[null,null,null,null,null,null,0]
[null,null,null,null,null,null,0]
[null,null,null,null,null,null,0]
[null,null,null,null,null,null,0]
[null,null,{"$f":"SUM(C3:C21)","v":0},{"$f":"SUM(D3:D21)","v":16850},{"$f":"SUM(E3:E21)","v":60},525,{"$f":"D22+E22-F22","v":16385}]

{"sheet":"الاسماء","index":13,"n_rows":0,"n_cols":0,"rows_kept":0,"cut":false,"hidden":false,"merged":[]}

{"sheet":"مسير","index":14,"n_rows":0,"n_cols":0,"rows_kept":0,"cut":false,"hidden":false,"merged":[]}